fUST/lending_fUST_20251011
["ID","MTS","AMOUNT","RATE_DAILY","PERIOD"]
[390845279,1760177463691,-548.04,0.00024657,9]
[390845280,1760177463700,-151.0,0.00024657,7]
[390845281,1760177463709,-500.0,0.00024657,9]
[390845282,1760177463719,-500.0,0.00024657,9]
[390845283,1760177463728,-500.0,0.00024657,9]
[390845284,1760177463737,-548.04,0.00024657,9]
[390845285,1760177463746,-500.0,0.00024657,9]
[390845286,1760177463755,-151.0,0.00024657,7]
[390845287,1760177463764,-500.0,0.00024657,9]
[390845288,1760177463773,-500.0,0.00024657,9]
[390845289,1760177463782,-548.04,0.00024657,9]
[390845290,1760177463791,-500.0,0.00024657,9]
[390845291,1760177463801,-500.0,0.00024657,9]
[390845292,1760177463810,-548.04,0.00024657,9]
[390845293,1760177463819,-500.0,0.00024657,9]
[390845294,1760177463829,-500.0,0.00024657,9]
[390845295,1760177463845,-500.0,0.00024657,9]
[390845296,1760177463854,-548.04,0.00024657,9]
[390845297,1760177463863,-184.96598251,0.00024657,9]
[390845298,1760177463872,-500.0,0.00024657,9]
[390845299,1760177463881,-500.0,0.00024657,9]
[390845300,1760177463890,-501.35681036,0.00024657,9]
[390845301,1760177463976,-548.04,0.00024657,9]
[390845302,1760177463986,-500.0,0.00024657,9]
[390845303,1760177463996,-500.71824095,0.00024657,9]
[390845304,1760177464006,-500.0,0.00024657,9]
[390845305,1760177464015,-548.04,0.00024657,9]
[390845306,1760177464024,-500.0,0.00024657,9]
[390845307,1760177464033,-500.0,0.00024657,9]
[390845308,1760177464042,-548.04,0.00024657,9]
[390845309,1760177464052,-170.20076935,0.00024657,9]
[390845310,1760177464061,-500.0,0.00024657,9]
[390845311,1760177464070,-548.04,0.00024657,9]
[390845312,1760177464081,-548.04,0.00024657,9]
[390845313,1760177464090,-500.0,0.00024657,9]
[390845314,1760177464099,-151.0,0.00024657,7]
[390845315,1760177464108,-1186.94,0.00024657,9]
[390845316,1760177464118,-548.04,0.00024657,9]
[390845317,1760177464127,-500.0,0.00024657,9]
[390845318,1760177464136,-496.33,0.00024657,9]
[390845319,1760177464146,-500.0,0.00024657,9]
[390845320,1760177464155,-151.0,0.00024657,7]
[390845321,1760177464165,-548.22602016,0.00024657,9]
[390845322,1760177464174,-1186.94,0.00024657,9]
[390845323,1760177464184,-500.0,0.00024657,9]
[390845324,1760177464192,-500.0,0.00024657,9]
[390845325,1760177464202,-151.0,0.00024657,7]
[390845326,1760177464211,-1186.94,0.00024657,9]
[390845327,1760177464220,-500.0,0.00024657,9]
[390845328,1760177464231,-500.0,0.00024657,9]
[390845329,1760177464241,-500.0,0.00024657,9]
[390845330,1760177464250,-500.0,0.00024657,9]
[390845331,1760177464260,-1186.94,0.00024657,9]
[390845332,1760177464269,-500.0,0.00024657,9]
[390845333,1760177464278,-500.0,0.00024657,9]
[390845334,1760177464287,-500.0,0.00024657,9]
[390845335,1760177464297,-500.0,0.00024657,9]
[390845336,1760177464306,-1186.94,0.00024657,9]
[390845337,1760177464318,-622.15527721,0.00024657,9]
[390845338,1760177464328,-500.0,0.00024657,9]
[390845339,1760177464337,-500.0,0.00024657,9]
[390845340,1760177464347,-1186.94,0.00024657,9]
[390845341,1760177464356,-500.0,0.00024657,9]
[390845342,1760177464365,-500.0,0.00024657,9]
[390845343,1760177464375,-151.0,0.00024657,7]
[390845344,1760177464384,-1186.94,0.00024657,9]
[390845345,1760177464394,-500.0,0.00024657,9]
[390845346,1760177464403,-500.0,0.00024657,9]
[390845347,1760177464411,-500.0,0.00024657,9]
[390845348,1760177464421,-1186.94,0.00024657,9]
[390845349,1760177464430,-151.0,0.00024657,7]
[390845350,1760177464440,-500.0,0.00024657,9]
[390845351,1760177464450,-500.0,0.00024657,9]
[390845352,1760177464459,-479.9,0.00024657,9]
[390845353,1760177464468,-1186.94,0.00024657,9]
[390845354,1760177464477,-151.0,0.00024657,7]
[390845355,1760177464486,-500.0,0.00024657,9]
[390845356,1760177464495,-500.0,0.00024673,2]
[390845357,1760177464505,-500.0,0.00024673,2]
[390845358,1760177464514,-500.0,0.00024673,2]
[390845359,1760177464523,-500.0,0.00024673,2]
[390845360,1760177464532,-500.0,0.00024673,2]
[390845361,1760177464541,-151.0,0.000247,5]
[390845362,1760177464551,-151.0,0.000247,6]
[390845363,1760177464560,-151.0,0.000247,7]
[390845364,1760177464569,-500.0,0.00024773,2]
[390845365,1760177464578,-344.48237397,0.00024773,2]
[390845366,1760177464587,-500.0,0.00024773,2]
[390845367,1760177464596,-604.48932129,0.00024773,2]
[390845368,1760177464605,-203.25041916,0.00024773,2]
[390845369,1760177464614,-500.0,0.00024773,2]
[390845370,1760177464622,-500.0,0.00024773,2]
[390845371,1760177464632,-500.0,0.00024773,2]
[390845372,1760177464641,-500.0,0.00024773,2]
[390845373,1760177464650,-151.0,0.000248,10]
[390845374,1760177464659,-151.0,0.000248,10]
[390845375,1760177464668,-151.0,0.000248,5]
[390845376,1760177464677,-151.0,0.000248,10]
[390845377,1760177464686,-151.0,0.000248,7]
[390845378,1760177464695,-151.0,0.000248,7]
[390845379,1760177464704,-213.944072,0.000248,7]
[390845380,1760177464713,-218.781991,0.000248,7]
[390845381,1760177464722,-218.781991,0.000248,7]
[390845382,1760177464731,-218.781991,0.000248,7]
[390845383,1760177464740,-218.781991,0.000248,7]
[390845384,1760177464749,-151.0,0.000248,7]
[390845385,1760177464758,-151.0,0.000248,7]
[390845386,1760177464767,-151.0,0.000248,7]
[390845387,1760177464777,-151.0,0.000248,7]
[390845388,1760177464787,-151.0,0.000248,7]
[390845389,1760177464796,-151.0,0.000248,7]
[390845390,1760177464805,-151.0,0.000248,7]
[390845391,1760177464814,-151.0,0.000248,7]
[390845392,1760177464824,-499.77588781,0.000248,2]
[390845393,1760177464834,-323.11530517,0.000248,2]
[390845394,1760177464844,-103511.079563,0.000248,2]
[390845395,1760177464853,-690.4,0.00024824,9]
[390845396,1760177464862,-2503.6,0.00024825,2]
[390845397,1760177464872,-45000.0,0.0002487,7]
[390845398,1760177464881,-151.0,0.0002487,7]
[390845399,1760177464890,-192.083753,0.0002487,7]
[390845400,1760177464900,-151.0,0.0002487,7]
[390845401,1760177464908,-192.083753,0.0002487,7]
[390845402,1760177464917,-169.952159,0.0002487,7]
[390845403,1760177464926,-192.083753,0.0002487,7]
[390845404,1760177464935,-169.952159,0.0002487,7]
[390845405,1760177464944,-192.083753,0.0002487,7]
[390845406,1760177464953,-169.952159,0.0002487,7]
[390845407,1760177464962,-169.952159,0.0002487,7]
[390845408,1760177464971,-210.228881,0.0002487,7]
[390845409,1760177464980,-151.0,0.0002487,7]
[390845410,1760177464989,-151.0,0.0002487,7]
[390845411,1760177464998,-151.0,0.0002487,7]
[390845412,1760177465007,-151.0,0.0002487,7]
[390845413,1760177465016,-151.0,0.0002487,7]
[390845414,1760177465025,-151.0,0.0002487,7]
[390845415,1760177465034,-151.0,0.0002487,7]
[390845416,1760177465043,-151.0,0.0002487,7]
[390845417,1760177465052,-151.0,0.0002487,7]
[390845418,1760177465061,-202.597882,0.0002487,7]
[390845419,1760177465071,-2609.37557469,0.0002487,7]
[390845420,1760177465083,-500.0,0.00024873,2]
[390845421,1760177465092,-500.0,0.00024873,2]
[390845422,1760177465101,-151.51440632,0.00024885,2]
[390845423,1760177465111,-151.0,0.000249,8]
[390845424,1760177465121,-151.0,0.000249,10]
[390845425,1760177465130,-151.25028,0.000249,7]
[390845426,1760177465139,-151.0,0.000249,7]
[390845427,1760177465148,-151.0,0.000249,7]
[390845428,1760177465157,-151.0,0.000249,7]
[390845429,1760177465166,-151.0,0.000249,7]
[390845430,1760177465175,-151.0,0.000249,7]
[390845431,1760177465184,-234.881425,0.000249,7]
[390845432,1760177465193,-151.0,0.000249,7]
[390845433,1760177465277,-160.302542,0.000249,7]
[390845434,1760177465286,-160.302542,0.000249,7]
[390845435,1760177465297,-160.302542,0.000249,7]
[390845436,1760177465307,-155.680566,0.000249,7]
[390845437,1760177465319,-268.741286,0.000249,7]
[390845438,1760177465329,-160.302542,0.000249,7]
[390845439,1760177465338,-268.741286,0.000249,7]
[390845440,1760177465347,-268.741286,0.000249,7]
[390845441,1760177465357,-268.741286,0.000249,7]
[390845442,1760177465366,-545.860758,0.000249,7]
[390845443,1760177465376,-545.860758,0.000249,7]
[390845444,1760177465385,-545.860758,0.000249,7]
[390845445,1760177465396,-545.860758,0.000249,7]
[390845446,1760177465405,-151.0,0.000249,7]
[390845447,1760177465414,-151.0,0.000249,7]
[390845448,1760177465423,-151.0,0.000249,2]
[390845449,1760177465432,-151.0,0.000249,7]
[390845450,1760177465442,-151.368948,0.000249,7]
[390845451,1760177465452,-151.0,0.000249,7]
[390845452,1760177465461,-151.0,0.000249,7]
[390845453,1760177465471,-151.0,0.000249,7]
[390845454,1760177465480,-151.0,0.000249,7]
[390845455,1760177465490,-151.0,0.000249,7]
[390845456,1760177465499,-235.833995,0.000249,7]
[390845457,1760177465509,-235.833995,0.000249,7]
[390845458,1760177465518,-235.833995,0.000249,7]
[390845459,1760177465528,-235.833995,0.000249,7]
[390845460,1760177465537,-151.0,0.000249,7]
[390845461,1760177465546,-152.145262,0.000249,7]
[390845462,1760177465555,-151.0,0.000249,7]
[390845463,1760177465564,-151.0,0.000249,7]
[390845464,1760177465574,-151.0,0.000249,7]
[390845465,1760177465583,-151.0,0.000249,7]
[390845466,1760177465593,-151.0,0.000249,7]
[390845467,1760177465602,-151.0,0.000249,7]
[390845468,1760177465611,-151.0,0.000249,7]
[390845469,1760177465620,-151.0,0.000249,7]
[390845470,1760177465630,-151.0,0.000249,7]
[390845471,1760177465639,-152.671901,0.000249,7]
[390845472,1760177465648,-151.0,0.000249,7]
[390845473,1760177465658,-151.0,0.000249,7]
[390845474,1760177465667,-151.0,0.000249,7]
[390845475,1760177465676,-151.0,0.000249,7]
[390845476,1760177465685,-151.0,0.000249,7]
[390845477,1760177465695,-151.0,0.000249,7]
[390845478,1760177465704,-151.0,0.000249,7]
[390845479,1760177465713,-151.0,0.000249,7]
[390845480,1760177465722,-151.0,0.000249,7]
[390845481,1760177465731,-151.0,0.000249,7]
[390845482,1760177465741,-1051.467472,0.000249,7]
[390845483,1760177465751,-1051.467472,0.000249,7]
[390845484,1760177465761,-1051.467472,0.000249,7]
[390845485,1760177465771,-1051.467472,0.000249,7]
[390845486,1760177465781,-165.026136,0.000249,7]
[390845487,1760177465791,-165.026136,0.000249,7]
[390845488,1760177465801,-165.026136,0.000249,7]
[390845489,1760177465811,-165.026136,0.000249,7]
[390845490,1760177465821,-151.0,0.000249,7]
[390845491,1760177465833,-261.372512,0.000249,7]
[390845492,1760177465843,-261.372512,0.000249,7]
[390845493,1760177465857,-151.0,0.000249,7]
[390845494,1760177465878,-261.372512,0.000249,7]
[390845495,1760177465894,-151.0,0.000249,7]
[390845496,1760177465912,-261.372512,0.000249,7]
[390845497,1760177465933,-151.0,0.000249,7]
[390845498,1760177465949,-151.0,0.000249,7]
[390845499,1760177465966,-151.0,0.000249,7]
[390845500,1760177465984,-320962.917167,0.000249,2]
[390845501,1760177465998,-151.0,0.000249,7]
[390845502,1760177466017,-151.0,0.000249,7]
[390845503,1760177466035,-151.0,0.000249,7]
[390845504,1760177466053,-151.0,0.000249,7]
[390845505,1760177466065,-151.0,0.000249,7]
[390845506,1760177466087,-151.0,0.000249,7]
[390845507,1760177466100,-151.0,0.000249,7]
[390845508,1760177466115,-151.0,0.000249,7]
[390845509,1760177466130,-151.0,0.000249,7]
[390845510,1760177466145,-1691.652627,0.000249,7]
[390845511,1760177466159,-151.0,0.000249,7]
[390845512,1760177466173,-1691.652627,0.000249,7]
[390845513,1760177466186,-1691.652627,0.000249,7]
[390845514,1760177466202,-1691.652627,0.000249,7]
[390845515,1760177466217,-151.0,0.000249,7]
[390845516,1760177466232,-151.0,0.000249,7]
[390845517,1760177466245,-237.134528,0.000249,7]
[390845518,1760177466259,-151.0,0.000249,7]
[390845519,1760177466273,-697.076692,0.000249,7]
[390845520,1760177466286,-983.0,0.000249,2]
[390845521,1760177466300,-697.076692,0.000249,7]
[390845522,1760177466315,-697.076692,0.000249,7]
[390845523,1760177466331,-697.076692,0.000249,7]
[390845524,1760177466345,-274.599595,0.000249,7]
[390845525,1760177466359,-151.0,0.000249,7]
[390845526,1760177466373,-2609.37557469,0.00024922,2]
[390845527,1760177466389,-690.4,0.00024939,9]
[390845528,1760177466402,-690.4,0.00024941,9]
[390845529,1760177466416,-2609.37557469,0.00024942,7]
[390845530,1760177466430,-690.4,0.00024949,9]
[390845531,1760177466443,-690.4,0.00024949,9]
[390845532,1760177466457,-690.4,0.00024949,9]
[390845533,1760177466470,-690.4,0.00024949,9]
[390845534,1760177466484,-690.4,0.00024949,9]
[390845535,1760177466498,-690.4,0.00024949,9]
[390845536,1760177466511,-323.11530517,0.00025,2]
[390845537,1760177466525,-300.0,0.00025149,20]
[390845538,1760177466540,-300.0,0.00025149,20]
[390845539,1760177466554,-300.0,0.00025149,20]
[390845540,1760177466567,-300.0,0.00025149,20]
[390845541,1760177466585,-300.0,0.00025149,20]
[390845542,1760177466600,-300.0,0.00025149,20]
[390845543,1760177466614,-300.0,0.00025149,20]
[390845544,1760177466628,-300.0,0.00025149,20]
[390845545,1760177466644,-300.0,0.00025149,20]
[390845546,1760177466660,-300.0,0.00025149,20]
[390845547,1760177466676,-300.0,0.00025149,20]
[390845548,1760177466690,-300.0,0.00025149,20]
[390845549,1760177466703,-300.0,0.00025149,20]
[390845550,1760177466712,-300.0,0.00025149,20]
[390845551,1760177466722,-300.0,0.00025149,20]
[390845552,1760177466731,-600.0,0.00025149,20]
[390845553,1760177466840,-151.0,0.00025221,7]
[390845554,1760177466898,-192.083753,0.00025221,7]
[390845555,1760177466908,-151.0,0.00025221,7]
[390845556,1760177466918,-192.083753,0.00025221,7]
[390845557,1760177466929,-169.952159,0.00025221,7]
[390845558,1760177466938,-192.083753,0.00025221,7]
[390845559,1760177466948,-169.952159,0.00025221,7]
[390845560,1760177466961,-192.083753,0.00025221,7]
[390845561,1760177466972,-169.952159,0.00025221,7]
[390845562,1760177466982,-169.952159,0.00025221,7]
[390845563,1760177466992,-151.0,0.00025221,7]
[390845564,1760177467002,-151.0,0.00025221,7]
[390845565,1760177467012,-280.866,0.00025221,7]
[390845566,1760177467021,-1000.0,0.00025221,2]
[390845567,1760177467031,-1000.0,0.00025221,2]
[390845568,1760177467040,-1000.0,0.00025221,2]
[390845569,1760177467049,-151.0,0.00025221,7]
[390845570,1760177467059,-1000.0,0.00025221,2]
[390845571,1760177467068,-814.560465,0.00025221,2]
[390845572,1760177467081,-151.0,0.00025221,7]
[390845573,1760177467091,-151.0,0.00025221,7]
[390845574,1760177467100,-151.0,0.00025221,7]
[390845575,1760177467109,-151.0,0.00025221,7]
[390845576,1760177467119,-151.0,0.00025221,7]
[390845577,1760177467128,-172.5,0.00025257,2]
[390845578,1760177467138,-151.0,0.000253,7]
[390845579,1760177467148,-151.0,0.000253,7]
[390845580,1760177467157,-151.0,0.000253,7]
[390845581,1760177467167,-151.0,0.000253,7]
[390845582,1760177467176,-151.0,0.000253,7]
[390845583,1760177467185,-151.0,0.000253,7]
[390845584,1760177467194,-151.0,0.000253,7]
[390845585,1760177467203,-218.781991,0.000253,7]
[390845586,1760177467212,-218.781991,0.000253,7]
[390845587,1760177467221,-218.781991,0.000253,7]
[390845588,1760177467230,-218.781991,0.000253,7]
[390845589,1760177467239,-151.0,0.000253,7]
[390845590,1760177467247,-151.0,0.000253,7]
[390845591,1760177467258,-151.0,0.000253,7]
[390845592,1760177467267,-151.0,0.000253,7]
[390845593,1760177467276,-151.0,0.000253,7]
[390845594,1760177467284,-151.0,0.000253,7]
[390845595,1760177467293,-245.837401,0.000253,7]
[390845596,1760177467302,-237.069429,0.000253,7]
[390845597,1760177467312,-323.11530517,0.000253,2]
[390845598,1760177467324,-1000.0,0.00025321,2]
[390845599,1760177467337,-1000.0,0.00025321,2]
[390845600,1760177467346,-1000.0,0.00025321,2]
[390845601,1760177467355,-499.77588776,0.00025375,2]
[390845602,1760177467366,-2609.37557469,0.000254,7]
[390845603,1760177467375,-2609.37557469,0.000254,3]
[390845604,1760177467384,-437.39629321,0.00025421,2]
[390845605,1760177467394,-323.11530517,0.000255,2]
[390845606,1760177467404,-1191.04749309,0.0002564,2]
[390845607,1760177467413,-153.757649,0.00025711,9]
[390845608,1760177467422,-240.0,0.00025729,2]
[390845609,1760177467433,-1147.88,0.00025814,2]
[390845610,1760177467442,-5888.0,0.00025825,2]
[390845611,1760177467452,-195.0,0.00025857,2]
[390845612,1760177467461,-1500.0,0.00025868,2]
[390845613,1760177467470,-1500.0,0.00025868,2]
[390845614,1760177467480,-505.09056079,0.00025868,2]
[390845615,1760177467489,-40000.0,0.0002587,2]
[390845616,1760177467498,-3097.0,0.00025903,2]
[390845617,1760177467507,-411.333818,0.00025919,2]
[390845618,1760177467517,-240.0,0.00025929,7]
[390845619,1760177467527,-499.77588776,0.00025951,2]
[390845620,1760177467536,-2396.44,0.00026017,3]
[390845621,1760177467546,-1198.22,0.00026017,3]
[390845622,1760177467555,-599.12,0.00026017,3]
[390845623,1760177467565,-7097.42,0.00026027,2]
[390845624,1760177467574,-153.757649,0.00026048,9]
[390845625,1760177467585,-157.428079,0.00026048,9]
[390845626,1760177467594,-240.0,0.00026077,2]
[390845627,1760177467603,-168.0,0.00026083,2]
[390845628,1760177467613,-150.0,0.00026155,7]
[390845629,1760177467622,-240.0,0.00026273,2]
[390845630,1760177467631,-503.16002764,0.0002635,2]
[390845631,1760177467640,-1000.0,0.00026416,2]
[390845632,1760177467650,-2000.0,0.00026416,2]
[390845633,1760177467659,-217.5,0.00026457,2]
[390845634,1760177467668,-7417.8493012,0.00026497,2]
[390845635,1760177467677,-499.77588776,0.00026526,2]
[390845636,1760177467686,-420.0,0.0002672,2]
[390845637,1760177467695,-1191.04749309,0.00026724,2]
[390845638,1760177467704,-240.0,0.00026733,2]
[390845639,1760177467713,-250.0,0.00026783,2]
[390845640,1760177467722,-18603.8837,0.00026783,2]
[390845641,1760177467730,-255.4525165,0.00026783,2]
[390845642,1760177467739,-250.0,0.00026783,2]
[390845643,1760177467748,-250.0,0.00026783,2]
[390845644,1760177467757,-250.0,0.00026783,2]
[390845645,1760177467766,-250.0,0.00026783,2]
[390845646,1760177467775,-500.0,0.00026783,2]
[390845647,1760177467784,-250.0,0.00026783,2]
[390845648,1760177467793,-504.12458136,0.00026783,2]
[390845649,1760177467802,-250.0,0.00026783,2]
[390845650,1760177467812,-250.0,0.00026783,2]
[390845651,1760177467821,-250.0,0.00026783,2]
[390845652,1760177467831,-250.0,0.00026783,2]
[390845653,1760177467840,-250.0,0.00026783,2]
[390845654,1760177467849,-250.0,0.00026783,2]
[390845655,1760177467858,-279.66141207,0.00026783,2]
[390845656,1760177467868,-162.86771405,0.00026783,2]
[390845657,1760177467877,-500.0,0.00026783,2]
[390845658,1760177467886,-500.0,0.00026783,2]
[390845659,1760177467895,-519.30491592,0.00026783,2]
[390845660,1760177467904,-168.0,0.00026787,2]
[390845661,1760177467913,-255.80682142,0.000268,2]
[390845662,1760177467924,-291.45974772,0.000268,2]
[390845663,1760177467934,-3097.0,0.00026821,7]
[390845664,1760177467943,-168.0,0.00026892,2]
[390845665,1760177467953,-240.0,0.00027057,2]
[390845666,1760177467962,-499.77588776,0.00027102,2]
[390845667,1760177467972,-2609.37557469,0.00027123,10]
[390845668,1760177467981,-1000.0,0.00027123,10]
[390845669,1760177467990,-1000.0,0.00027123,10]
[390845670,1760177467999,-1000.0,0.00027123,10]
[390845671,1760177468009,-1000.0,0.00027123,10]
[390845672,1760177468018,-1000.0,0.00027123,10]
[390845673,1760177468028,-1000.0,0.00027123,10]
[390845674,1760177468038,-1000.0,0.00027123,10]
[390845675,1760177468047,-751.7,0.00027123,10]
[390845676,1760177468056,-7097.42,0.00027123,4]
[390845677,1760177468066,-1655.1459025,0.00027277,2]
[390845678,1760177468077,-500.0,0.000273,2]
[390845679,1760177468087,-154.84,0.0002733,7]
[390845680,1760177468097,-688.3436969,0.00027331,2]
[390845681,1760177468107,-155.77,0.00027339,7]
[390845682,1760177468117,-154.7,0.00027339,7]
[390845683,1760177468127,-168.0,0.00027351,2]
[390845684,1760177468137,-168.0,0.00027356,2]
[390845685,1760177468147,-1000.0,0.00027397,30]
[390845686,1760177468157,-1000.0,0.00027397,30]
[390845687,1760177468167,-8295.56,0.000274,2]
[390845688,1760177468177,-154.84,0.0002743,15]
[390845689,1760177468187,-3097.0,0.00027583,2]
[390845690,1760177468197,-240.0,0.00027617,7]
[390845691,1760177468207,-1434.85,0.00027657,2]
[390845692,1760177468217,-262.5,0.00027657,2]
[390845693,1760177468227,-720.0,0.00027664,30]
[390845694,1760177468236,-499.77588776,0.00027677,2]
[390845695,1760177468245,-2056.9502369,0.00027745,2]
[390845696,1760177468255,-1191.04749309,0.00027807,2]
[390845697,1760177468264,-240.0,0.00027861,2]
[390845698,1760177468273,-168.0,0.00027864,2]
[390845699,1760177468283,-980.0,0.00027881,2]
[390845700,1760177468292,-630.0,0.00027881,2]
[390845701,1760177468301,-2159.0,0.00027881,2]
[390845702,1760177468311,-4645.0,0.00027881,2]
[390845703,1760177468324,-168.0,0.00027943,2]
[390845704,1760177468337,-168.0,0.0002798,2]
[390845705,1760177468347,-524.77089743,0.00027995,2]
[390845706,1760177468359,-2096.98450615,0.00027995,2]
[390845707,1760177468370,-2576.74483697,0.00027995,2]
[390845708,1760177468380,-240.0,0.00028025,2]
[390845709,1760177468390,-240.0,0.00028125,2]
[390845710,1760177468399,-150.0,0.00028155,2]
[390845711,1760177468409,-150.0,0.00028155,2]
[390845712,1760177468418,-150.0,0.00028155,2]
[390845713,1760177468428,-168.0,0.00028174,2]
[390845714,1760177468438,-7097.42,0.00028219,6]
[390845715,1760177468448,-499.77588776,0.00028253,2]
[390845716,1760177468457,-285.0,0.00028257,2]
[390845717,1760177468467,-168.0,0.00028338,2]
[390845718,1760177468476,-458.9676357,0.0002845,2]
[390845719,1760177468485,-168.0,0.00028454,2]
[390845720,1760177468495,-500.0,0.00028679,10]
[390845721,1760177468505,-500.0,0.00028767,60]
[390845722,1760177468514,-500.0,0.00028767,60]
[390845723,1760177468523,-500.0,0.00028767,60]
[390845724,1760177468533,-500.0,0.00028767,60]
[390845725,1760177468542,-500.0,0.00028767,60]
[390845726,1760177468551,-500.0,0.00028808,11]
[390845727,1760177468560,-499.77588776,0.00028828,2]
[390845728,1760177468570,-307.5,0.00028857,2]
[390845729,1760177468582,-1191.04749309,0.0002889,2]
[390845730,1760177468591,-8295.56,0.000289,2]
[390845731,1760177468600,-5791.8782073,0.0002893,2]
[390845732,1760177468609,-167.0,0.00028957,2]
[390845733,1760177468619,-500.84319843,0.00028973,5]
[390845734,1760177468628,-500.0,0.00028973,5]
[390845735,1760177468637,-500.0,0.00028973,5]
[390845736,1760177468647,-500.0,0.00028973,5]
[390845737,1760177468657,-599.90783163,0.00028973,5]
[390845738,1760177468666,-500.0,0.00028973,5]
[390845739,1760177468675,-500.0,0.00028973,5]
[390845740,1760177468684,-200.32173389,0.00028973,5]
[390845741,1760177468693,-500.56035074,0.00028973,5]
[390845742,1760177468703,-500.0,0.00028973,5]
[390845743,1760177468711,-500.0,0.00028973,2]
[390845744,1760177468721,-500.0,0.00028973,5]
[390845745,1760177468730,-500.0,0.00028973,5]
[390845746,1760177468739,-500.0,0.00028973,5]
[390845747,1760177468749,-500.0,0.00028973,5]
[390845748,1760177468759,-500.73542082,0.00028973,5]
[390845749,1760177468769,-50000.0,0.0002899,2]
[390845750,1760177468779,-50000.0,0.0002899,3]
[390845751,1760177468789,-50000.0,0.0002899,4]
[390845752,1760177468798,-26618.58815108,0.0002899,5]
[390845753,1760177468808,-151.0,0.0002899,30]
[390845754,1760177468817,-151.0,0.0002899,30]
[390845755,1760177468829,-210.172386,0.0002899,30]
[390845756,1760177468838,-151.0,0.0002899,30]
[390845757,1760177468848,-151.0,0.0002899,30]
[390845758,1760177468857,-151.0,0.0002899,30]
[390845759,1760177468867,-151.0,0.0002899,30]
[390845760,1760177468876,-151.0,0.0002899,30]
[390845761,1760177468886,-218.360314,0.0002899,15]
[390845762,1760177468895,-218.360314,0.0002899,15]
[390845763,1760177468904,-218.360314,0.0002899,15]
[390845764,1760177469011,-218.360314,0.0002899,15]
[390845765,1760177469021,-151.0,0.0002899,30]
[390845766,1760177469031,-151.0,0.0002899,30]
[390845767,1760177469040,-151.0,0.0002899,30]
[390845768,1760177469049,-151.0,0.0002899,30]
[390845769,1760177469058,-151.0,0.0002899,30]
[390845770,1760177469068,-151.0,0.0002899,30]
[390845771,1760177469077,-151.0,0.0002899,30]
[390845772,1760177469086,-151.0,0.0002899,30]
[390845773,1760177469096,-151.0,0.0002899,30]
[390845774,1760177469105,-151.0,0.0002899,30]
[390845775,1760177469114,-151.0,0.0002899,30]
[390845776,1760177469124,-151.0,0.0002899,30]
[390845777,1760177469133,-553.76621,0.0002899,30]
[390845778,1760177469142,-151.0,0.0002899,30]